Workbook

Sheet Summary
A3: Paragon Mortgages (No.16) PLC
A5: Information as at the Principal Determination Date | B5: 2011-12-30 | C5: 2012-03-30 | D5: 2012-06-29 | E5: 2012-09-28 | F5: 2012-12-31 | G5: 2013-03-28 | H5: 2013-06-28 | I5: 2013-09-30 | J5: 2013-12-31 | K5: 2014-03-31 | L5: 2014-06-30
A6: Mortgage Asset Balance | B6: 128442 | C6: 163099 | D6: 161873 | E6: 159976 | F6: 159194 | G6: 157849 | H6: 152079 | I6: 141368 | J6: 128573 | K6: 118306 | L6: 111785
A7: Pre Funding Reserve | B7: 35270 | C7: 0 | D7: 0 | E7: 0 | F7: 0 | G7: 0 | H7: 0 | I7: 0 | J7: 0 | K7: 0 | L7: 0
A8: Retained Available Redemption Funds for the funding of future Discretionary Further Advances | B8: 0 | C8: 295 | D8: 293 | E8: 0 | F8: 100 | G8: 460 | H8: 500 | I8: 100 | J8: 0 | K8: 0 | L8: 0
A9: Total Assets | B9: =SUM(B6:B8) -> 163712 | C9: 163394 | D9: 162166 | E9: 159976 | F9: 159294 | G9: 158309 | H9: =SUM(H6:H8) -> 152579 | I9: =SUM(I6:I8) -> 141468 | J9: =SUM(J6:J8) -> 128573 | K9: =SUM(K6:K8) -> 118306 | L9: =SUM(L6:L8) -> 111785
A10: Total Notes | B10: =SUM(B11:B12) -> 163712 | C10: 163394 | D10: 162166 | E10: 159976 | F10: 159294 | G10: 158309 | H10: =SUM(H11:H12) -> 152579 | I10: =SUM(I11:I12) -> 141468 | J10: =SUM(J11:J12) -> 128573 | K10: =SUM(K11:K12) -> 118306 | L10: =SUM(L11:L12) -> 111785
A11: Class A Notes | B11: 131612 | C11: 131294 | D11: 130066 | E11: 127876 | F11: 127194 | G11: 126209 | H11: 120479 | I11: 109368 | J11: 96473 | K11: 86206 | L11: 79685
A12: Class Z Notes | B12: 32100 | C12: 32100 | D12: 32100 | E12: 32100 | F12: 32100 | G12: 32100 | H12: 32100 | I12: 32100 | J12: 32100 | K12: 32100 | L12: 32100
A13: Class Z Notes as a % of the Total Notes | B13: =B12/B10 -> 0.196076036 | C13: 0.1964576423 | D13: 0.1979453153 | E13: 0.2006550983 | F13: 0.2015141813 | G13: 0.2027680043 | H13: =H12/H10 -> 0.2103828181 | I13: =I12/I10 -> 0.2269064382 | J13: =J12/J10 -> 0.2496636152 | K13: =K12/K10 -> 0.2713302791 | L13: =L12/L10 -> 0.2871583844
A14: Lifetime Redemption Rate | B14: 0.006 | C14: 0.0138 | D14: 0.0211 | E14: 0.0287 | F14: 0.028 | G14: 0.0294 | H14: 0.0465 | I14: 0.0774 | J14: 0.1085 | K14: 0.1283 | L14: 0.1361
A15: Quarterly Redemption Rate | B15: 0.0012 | C15: 0.0049 | D15: 0.0085 | E15: 0.0126 | F15: 0.0064 | G15: 0.0091 | H15: 0.0366 | I15: 0.0729 | J15: 0.0906 | K15: 0.0799 | L15: 0.0568
A16: Further Advances released in the quarter | B16: 37 | C16: 0 | D16: 141 | E16: 132 | F16: 214 | G16: 82 | H16: 0 | I16: 343 | J16: 18 | K16: 0 | L16: 194
A17: First Loss Fund Balance | B17: 4914 | C17: 4914 | D17: 4914 | E17: 4914 | F17: 4914 | G17: 4914 | H17: 4914 | I17: 4914 | J17: 4914 | K17: 4914 | L17: 4914
A18: Liquidity Amount of the First Loss Fund (3% of the Class A Notes) | B18: =B11*3% -> 3948.36 | C18: 3938.82 | D18: 3901.98 | E18: 3836.28 | F18: 3815.82 | G18: 3786.27 | H18: =H11*3% -> 3614.37 | I18: =I11*3% -> 3281.04 | J18: =J11*3% -> 2894.19 | K18: =K11*3% -> 2586.18 | L18: =L11*3% -> 2390.55
A19: Liquidity Excess Amount (First Loss Fund - Liquidity Amount) | B19: =B17-B18 -> 965.64 | C19: 975.18 | D19: 1012.02 | E19: 1077.72 | F19: 1098.18 | G19: 1127.73 | H19: =H17-H18 -> 1299.63 | I19: =I17-I18 -> 1632.96 | J19: =J17-J18 -> 2019.81 | K19: =K17-K18 -> 2327.82 | L19: =L17-L18 -> 2523.45
A20: First Loss Fund as a % of the Assets | B20: =+B17/B9 -> 0.03001612588 | C20: 0.03007454374 | D20: 0.03030228285 | E20: 0.03071710757 | F20: 0.03084861953 | G20: 0.03104055992 | H20: =+H17/H9 -> 0.03220626692 | I20: =+I17/I9 -> 0.03473577063 | J20: =+J17/J9 -> 0.03821953287 | K20: =+K17/K9 -> 0.04153635488 | L20: =+L17/L9 -> 0.04395938632
A21: Opening PDL Balance | B21: 0 | C21: 0 | D21: 0 | E21: 0 | F21: 0 | G21: 0 | H21: 0 | I21: 0 | J21: 0 | K21: 0 | L21: 0
A22: Quarterly Losses | B22: 0 | C22: 0 | D22: 0 | E22: 0 | F22: 0 | G22: 0 | H22: 0 | I22: 0 | J22: 0 | K22: 0 | L22: 0
A23: Quarterly Loss Rate (annualised) | B23: =1-(1-B22/B9)^4 -> 0 | C23: 0 | D23: 0 | E23: 0 | F23: 0 | G23: 0 | H23: =1-(1-H22/H9)^4 -> 0 | I23: =1-(1-I22/I9)^4 -> 0 | J23: =1-(1-J22/J9)^4 -> 0 | K23: =1-(1-K22/K9)^4 -> 0 | L23: =1-(1-L22/L9)^4 -> 0
A24: PDL Replenishment made during the quarter (-ve = recoveries) | B24: 0 | C24: 0 | D24: 0 | E24: 0 | F24: 0 | G24: 0 | H24: 0 | I24: 0 | J24: 0 | K24: 0 | L24: 0
A25: Outstanding PDL at end of the quarter | B25: =B21+B22-B24 -> 0 | C25: 0 | D25: 0 | E25: 0 | F25: 0 | G25: 0 | H25: =H21+H22-H24 -> 0 | I25: =I21+I22-I24 -> 0 | J25: =J21+J22-J24 -> 0 | K25: =K21+K22-K24 -> 0 | L25: =L21+L22-L24 -> 0
A26: Spread Trap repayment in the quarter | B26: N/A | C26: N/A | D26: N/A | E26: N/A | F26: N/A | G26: N/A | H26: N/A | I26: N/A | J26: N/A | K26: N/A | L26: N/A
A27: Spread % (WA Funding Rate less WA Interest Rate) | B27: 0.0106 | C27: 0.0091 | D27: 0.0099 | E27: 0.0105 | F27: 0.0115 | G27: 0.0121 | H27: 0.0141 | I27: 0.017 | J27: 0.0183 | K27: 0.0196 | L27: 0.0195
A28: Total Income as a % of the Assets | B28: 0.0067 | C28: 0.0127 | D28: 0.013 | E28: 0.0126 | F28: 0.012 | G28: 0.0118 | H28: 0.0118 | I28: 0.0123 | J28: 0.0135 | K28: 0.0129 | L28: 0.0132
A29: Quarterly surplus income to the Issuer | B29: 0 | C29: 138 | D29: 333 | E29: 322 | F29: 277 | G29: 284 | H29: 308 | I29: 432 | J29: 576 | K29: 477 | L29: 453
A30: Surplus Income as a % of the Assets | B30: =+B29/163800 -> 0 | C30: =+C29/B9 -> 0.000842943706 | D30: 0.002038018532 | E30: 0.001985619674 | F30: 0.001731509726 | G30: 0.0017828669 | H30: 0.00194556216 | I30: 0.002831320169 | J30: 0.004071592162 | K30: 0.003709954656 | L30: 0.003829053472
A31: Losses as a % of the Assets | B31: =+B22/163800 -> 0 | C31: =+C22/B9 -> 0 | D31: 0 | E31: 0 | F31: 0 | G31: 0 | H31: 0 | I31: 0 | J31: 0 | K31: 0 | L31: 0
A32: Number of Properties in Possession | B32: 0 | C32: 0 | D32: 0 | E32: 0 | F32: 0 | G32: 0 | H32: 0 | I32: 0 | J32: 0 | K32: 0 | L32: 0
A33: Appointment of a Receiver of Rent | B33: 0 | C33: 0 | D33: 0 | E33: 0 | F33: 0 | G33: 0 | H33: 0 | I33: 0 | J33: 0 | K33: 0 | L33: 0
A34: Average Number of months (Possessions) in Arrears at the Sale Date | B34: 0 | C34: 0 | D34: 0 | E34: 0 | F34: 0 | G34: 0 | H34: 0 | I34: 0 | J34: 0 | K34: 0 | L34: 0
A35: Average Number of months (RoR) in Arrears at the Sale Date | B35: 0 | C35: 0 | D35: 0 | E35: 0 | F35: 0 | G35: 0 | H35: 0 | I35: 0 | J35: 0 | K35: 0 | L35: 0
A36: Arrears excluding Receiver of Rent and Possession Cases
A37: Performing Loans | B37: 1 | C37: 1 | D37: 1 | E37: 1 | F37: 1 | G37: 0.9993 | H37: 0.9993 | I37: 0.9992 | J37: 1 | K37: 0.9988 | L37: 0.9988
A38: >1 to 2 months arrears | B38: 0 | C38: 0 | D38: 0 | E38: 0 | F38: 0 | G38: 0.0007 | H38: 0.0007 | I38: 0.0008 | J38: 0 | K38: 0 | L38: 0
A39: >2 to 3 months arrears | B39: 0 | C39: 0 | D39: 0 | E39: 0 | F39: 0 | G39: 0 | H39: 0 | I39: 0 | J39: 0 | K39: 0.0012 | L39: 0
A40: >3 months arrears | B40: 0 | C40: 0 | D40: 0 | E40: 0 | F40: 0 | G40: 0 | H40: 0 | I40: 0 | J40: 0 | K40: 0 | L40: 0.0012
A41: Total | B41: =SUM(B37:B40) -> 1 | C41: 1 | D41: 1 | E41: 1 | F41: 1 | G41: 1 | H41: =SUM(H37:H40) -> 1 | I41: =SUM(I37:I40) -> 1 | J41: =SUM(J37:J40) -> 1 | K41: =SUM(K37:K40) -> 1 | L41: =SUM(L37:L40) -> 1
A42: Total Value of Arrears (£000's) | B42: 0 | C42: 2 | D42: 0 | E42: 0 | F42: 3 | G42: 1 | H42: 0 | I42: 1 | J42: 0 | K42: 2 | L42: 4
A43: Total Value of Arrears as a % of the Notes Issued (£163,800,000) | B43: =+B42/163800 -> 0 | C43: 1.221001221e-05 | D43: 0 | E43: 0 | F43: 1.831501832e-05 | G43: 6.105006105e-06 | H43: =+H42/163800 -> 0 | I43: =+I42/163800 -> 6.105006105e-06 | J43: =+J42/163800 -> 0 | K43: =+K42/163800 -> 1.221001221e-05 | L43: =+L42/163800 -> 2.442002442e-05
A45: Underlying Assets | B45: 2011-12-30 | C45: 2012-03-30 | D45: 2012-06-29 | E45: 2012-09-28 | F45: 2012-12-31 | G45: 2013-03-28 | H45: 2013-06-28 | I45: 2013-09-30 | J45: 2013-12-31 | K45: 2014-03-31 | L45: 2014-06-30
A46: Weighted Average LTV | B46: 0.6976 | C46: 0.7 | D46: 0.7008 | E46: 0.7005 | F46: 0.6999 | G46: 0.6991 | H46: 0.6999 | I46: 0.6993 | J46: 0.6982 | K46: 0.6961 | L46: 0.6946
A47: Weighted Average Nationwide Indexed LTV | B47: 0.6922 | C47: 0.7078 | D47: 0.7087 | E47: 0.6965 | F47: 0.6951 | G47: 0.7006 | H47: 0.6994 | I47: 0.6651 | J47: 0.665 | K47: 0.6502 | L47: 0.6372
A48: Weighted Average Halifax Indexed LTV | B48: 0.6923 | C48: 0.693 | D48: 0.6981 | E48: 0.6952 | F48: 0.6949 | G48: 0.6981 | H48: 0.6853 | I48: 0.6641 | J48: 0.6515 | K48: 0.645 | L48: 0.6307
A49: % of Standard Variable Rate Mortgages | B49: 0 | C49: 0 | D49: 0 | E49: 0 | F49: 0.0127 | G49: 0.0796 | H49: 0.3092 | I49: 0.618 | J49: 0.8128 | K49: 0.9412 | L49: 0.9438
A50: % of Fixed Rate Mortgages (reverting to SVR) | B50: 0.3629 | C50: 0.3413 | D50: 0.3437 | E50: 0.3473 | F50: 0.3465 | G50: 0.3287 | H50: 0.2207 | I50: 0.0886 | J50: 0.0031 | K50: 0.0021 | L50: 0.0022
A51: % of Base Rate Mortgages | B51: 0 | C51: 0 | D51: 0 | E51: 0 | F51: 0 | G51: 0 | H51: 0 | I51: 0 | J51: 0 | K51: 0 | L51: 0
A52: % of Libor Linked Mortgages (reverting to SVR) | B52: 0.6371 | C52: 0.6587 | D52: 0.6563 | E52: 0.6527 | F52: 0.6408 | G52: 0.5917 | H52: 0.4701 | I52: 0.2934 | J52: 0.184 | K52: 0.0567 | L52: 0.054
A53: Weighted Average Loan Size | B53: 161157.37 | C53: 162287.34 | D53: 161872.69 | E53: 161103.54 | F53: 160801.8 | G53: 160741.88 | H53: 159078.16 | I53: 157776.9 | J53: 155468.81 | K53: 153246.43 | L53: 152295.8
A54: Weighted Average Interest Rate | B54: 0.04776 | C54: 0.04851 | D54: 0.04854 | E54: 0.04724 | F54: 0.04538 | G54: 0.04575 | H54: 0.04771 | I54: 0.0506 | J54: 0.05216 | K54: 0.05354 | L54: 0.0536
A55: Weighted Average Maturity Date (years) | B55: 19.92 | C55: 19.6 | D55: 19.33 | E55: 19.05 | F55: 18.81 | G55: 18.55 | H55: 18.33 | I55: 18.04 | J55: 17.81 | K55: 17.52 | L55: 17.31
A56: Weighted Average Seasoning (months) | B56: 6.81 | C56: 8.33 | D56: 11.31 | E56: 14.33 | F56: 17.38 | G56: 20.3 | H56: 23.21 | I56: 26.1 | J56: 29.09 | K56: 32.08 | L56: 35.09
A57: % of Interest Only Mortgages | B57: 0.3918 | C57: 0.3836 | D57: 0.382 | E57: 0.383 | F57: 0.3811 | G57: 0.3843 | H57: 0.3717 | I57: 0.3427 | J57: 0.3037 | K57: 0.2694 | L57: 0.2512
A58: % of Interest Only Mortgages (mandatory switching to repayment) | B58: 0.5127 | C58: 0.5159 | D58: 0.5186 | E58: 0.5174 | F58: 0.5193 | G58: 0.5162 | H58: 0.529 | I58: 0.554 | J58: 0.5904 | K58: 0.6225 | L58: 0.6332
A59: % of Repayment Mortgages | B59: 0.0955 | C59: 0.1005 | D59: 0.0994 | E59: 0.0996 | F59: 0.0996 | G59: 0.0995 | H59: 0.0993 | I59: 0.1033 | J59: 0.106 | K59: 0.1082 | L59: 0.1157
A60: % of Mortgages in London | B60: 0.2946 | C60: 0.2603 | D60: 0.2609 | E60: 0.2592 | F60: 0.2603 | G60: 0.2569 | H60: 0.2449 | I60: 0.2346 | J60: 0.2194 | K60: 0.1949 | L60: 0.1929
A61: % of Mortgages in the South East | B61: 0.2713 | C61: 0.285 | D61: 0.2818 | E61: 0.2853 | F61: 0.2835 | G61: 0.2851 | H61: 0.285 | I61: 0.2755 | J61: 0.2664 | K61: 0.2693 | L61: 0.2638
A62: % of Owner Occupied Mortgages | B62: 0 | C62: 0 | D62: 0 | E62: 0 | F62: 0 | G62: 0 | H62: 0 | I62: 0 | J62: 0 | K62: 0 | L62: 0
A63: % of Investment Home Loans - Professional Landlords | B63: 0.6988 | C63: 0.6814 | D63: 0.6824 | E63: 0.6852 | F63: 0.689 | G63: 0.6881 | H63: 0.7042 | I63: 0.7137 | J63: 0.7413 | K63: 0.7521 | L63: 0.76
A64: % of Investment Home Loans - Emerging Professional Landlords | B64: 0.3012 | C64: 0.3186 | D64: 0.3176 | E64: 0.3148 | F64: 0.311 | G64: 0.3119 | H64: 0.2958 | I64: 0.2863 | J64: 0.2587 | K64: 0.2479 | L64: 0.24
A65: Weighted Average Interest Coverage Ratio (calculated at the origination date) | B65: 1.58 | C65: 1.59 | D65: 1.59 | E65: 1.594 | F65: 1.59 | G65: 1.593 | H65: 1.59 | I65: 1.6 | J65: 1.6 | K65: 1.613 | L65: 1.62
A66: % of Paragon Originated Assets | B66: 0.5734 | C66: 0.5808 | D66: 0.5824 | E66: 0.5813 | F66: 0.5838 | G66: 0.5806 | H66: 0.5951 | I66: 0.6221 | J66: 0.6644 | K66: 0.6993 | L66: 0.7159
A67: % of Mortgage Trust Originated Assets | B67: 0.4266 | C67: 0.4192 | D67: 0.4176 | E67: 0.4187 | F67: 0.4162 | G67: 0.4194 | H67: 0.4049 | I67: 0.3779 | J67: 0.3356 | K67: 0.3007 | L67: 0.2841
A69: Underlying Assets - Paragon Originated Assets | B69: 2011-12-30 | C69: 2012-03-30 | D69: 2012-06-29 | E69: 2012-09-28 | F69: 2012-12-31 | G69: 2013-03-28 | H69: 2013-06-28 | I69: 2013-09-30 | J69: 2013-12-31 | K69: 2014-03-31 | L69: 2014-06-30
A70: Weighted Average LTV | B70: 0.6884 | C70: 0.6881 | D70: 0.6874 | E70: 0.6873 | F70: 0.6872 | G70: 0.6863 | H70: 0.6859 | I70: 0.6859 | J70: 0.6838 | K70: 0.6848 | L70: 0.6841
A71: Weighted Average Nationwide Indexed LTV | B71: 0.6832 | C71: 0.6952 | D71: 0.6947 | E71: 0.6836 | F71: 0.6828 | G71: 0.6886 | H71: 0.6868 | I71: 0.6552 | J71: 0.6532 | K71: 0.6409 | L71: 0.6291
A72: Weighted Average Halifax Indexed LTV | B72: 0.6806 | C72: 0.6839 | D72: 0.686 | E72: 0.6834 | F72: 0.6865 | G72: 0.688 | H72: 0.6757 | I72: 0.6539 | J72: 0.6401 | K72: 0.6361 | L72: 0.6236
A73: % of Standard Variable Rate Mortgages | B73: 0 | C73: 0 | D73: 0 | E73: 0 | F73: 0.0218 | G73: 0.1371 | H73: 0.3692 | I73: 0.6288 | J73: 0.8172 | K73: 0.9279 | L73: 0.9246
A74: % of Fixed Rate Mortgages (reverting to SVR) | B74: 0.3132 | C74: 0.3273 | D74: 0.3288 | E74: 0.3325 | F74: 0.3286 | G74: 0.2976 | H74: 0.213 | I74: 0.1015 | J74: 0.0018 | K74: 0 | L74: 0
A75: % of Base Rate Mortgages | B75: 0 | C75: 0 | D75: 0 | E75: 0 | F75: 0 | G75: 0 | H75: 0 | I75: 0 | J75: 0 | K75: 0 | L75: 0
A76: % of Libor Linked Mortgages (reverting to SVR) | B76: 0.6868 | C76: 0.6727 | D76: 0.6712 | E76: 0.6675 | F76: 0.6496 | G76: 0.5653 | H76: 0.4178 | I76: 0.2697 | J76: 0.181 | K76: 0.0721 | L76: 0.0754
A77: Weighted Average Loan Size | B77: 161166.3 | C77: 163596.7712 | D77: 163676.8202 | E77: 162858.4124 | F77: 163055.8901 | G77: 163065.1302 | H77: 163064.1921 | I77: 163774.8859 | J77: 163644.2602 | K77: 162855.6461 | L77: 162315.39
A78: Weighted Average Interest Rate | B78: 0.05013 | C78: 0.05081 | D78: 0.05081 | E78: 0.04947 | F78: 0.04762 | G78: 0.04829 | H78: 0.04941 | I78: 0.05076 | J78: 0.05176 | K78: 0.0527 | L78: 0.05267
A79: Weighted Average Maturity Date (years) | B79: 19.85 | C79: 19.58 | D79: 19.33 | E79: 19.02 | F79: 18.79 | G79: 18.53 | H79: 18.31 | I79: 18.05 | J79: 17.78 | K79: 17.48 | L79: 17.37
A80: Weighted Average Seasoning (months) | B80: 7.24 | C80: 8.58 | D80: 11.57 | E80: 14.6 | F80: 17.64 | G80: 20.54 | H80: 23.52 | I80: 26.48 | J80: 29.49 | K80: 32.44 | L80: 35.41
A81: % of Interest Only Mortgages | B81: 0 | C81: 0 | D81: 0 | E81: 0 | F81: 0 | G81: 0 | H81: 0 | I81: 0 | J81: 0 | K81: 0 | L81: 0
A82: % of Interest Only Mortgages (mandatory switching to repayment) | B82: 0.8892 | C82: 0.8803 | D82: 0.8824 | E82: 0.8818 | F82: 0.8813 | G82: 0.8808 | H82: 0.8804 | I82: 0.8818 | J82: 0.8796 | K82: 0.8809 | L82: 0.877
A83: % of Repayment Mortgages | B83: 0.1108 | C83: 0.1197 | D83: 0.1176 | E83: 0.1182 | F83: 0.1187 | G83: 0.1192 | H83: 0.1196 | I83: 0.1182 | J83: 0.1204 | K83: 0.1191 | L83: 0.123
A84: % of Mortgages in London | B84: 0.2002 | C84: 0.1811 | D84: 0.1823 | E84: 0.1828 | F84: 0.1826 | G84: 0.1756 | H84: 0.1776 | I84: 0.1833 | J84: 0.1842 | K84: 0.1805 | L84: 0.18
A85: % of Mortgages in the South East | B85: 0.2599 | C85: 0.2664 | D85: 0.264 | E85: 0.2681 | F85: 0.2684 | G85: 0.271 | H85: 0.2688 | I85: 0.2551 | J85: 0.2511 | K85: 0.2501 | L85: 0.2555
A86: % of Owner Occupied Mortgages | B86: 0 | C86: 0 | D86: 0 | E86: 0 | F86: 0 | G86: 0 | H86: 0 | I86: 0 | J86: 0 | K86: 0 | L86: 0
A87: % of Investment Home Loans - Professional Landlords | B87: 0.8389 | C87: 0.8078 | D87: 0.8093 | E87: 0.8142 | F87: 0.8157 | G87: 0.8158 | H87: 0.8192 | I87: 0.8146 | J87: 0.8109 | K87: 0.8123 | L87: 0.8103
A88: % of Investment Home Loans - Emerging Professional Landlords | B88: 0.1611 | C88: 0.1922 | D88: 0.1907 | E88: 0.1858 | F88: 0.1843 | G88: 0.1842 | H88: 0.1808 | I88: 0.1854 | J88: 0.1891 | K88: 0.1877 | L88: 0.1897
A89: Weighted Average Interest Coverage Ratio (calculated at the origination date) | B89: 1.6 | C89: 1.62 | D89: 1.62 | E89: 1.62 | F89: 1.62 | G89: 1.62 | H89: 1.62 | I89: 1.62 | J89: 1.63 | K89: 1.63 | L89: 1.64
A90: Number of Properties in Possession | B90: 0 | C90: 0 | D90: 0 | E90: 0 | F90: 0 | G90: 0 | H90: 0 | I90: 0 | J90: 0 | K90: 0 | L90: 0
A91: Appointment of a Receiver of Rent | B91: 0 | C91: 0 | D91: 0 | E91: 0 | F91: 0 | G91: 0 | H91: 0 | I91: 0 | J91: 0 | K91: 0 | L91: 0
A92: PML Quarterly Losses | B92: 0 | C92: 0 | D92: 0 | E92: 0 | F92: 0 | G92: 0 | H92: 0 | I92: 0 | J92: 0 | K92: 0 | L92: 0
A93: Arrears excluding Receiver of Rent and Possession Cases
A94: Performing Loans | B94: 1 | C94: 1 | D94: 1 | E94: 1 | F94: 1 | G94: 1 | H94: 1 | I94: 1 | J94: 1 | K94: 1 | L94: 1
A95: >1 to 2 months arrears | B95: 0 | C95: 0 | D95: 0 | E95: 0 | F95: 0 | G95: 0 | H95: 0 | I95: 0 | J95: 0 | K95: 0 | L95: 0
A96: >2 to 3 months arrears | B96: 0 | C96: 0 | D96: 0 | E96: 0 | F96: 0 | G96: 0 | H96: 0 | I96: 0 | J96: 0 | K96: 0 | L96: 0
A97: >3 months arrears | B97: 0 | C97: 0 | D97: 0 | E97: 0 | F97: 0 | G97: 0 | H97: 0 | I97: 0 | J97: 0 | K97: 0 | L97: 0
A98: Total | B98: =SUM(B94:B97) -> 1 | C98: 1 | D98: 1 | E98: 1 | F98: 1 | G98: 1 | H98: 1 | I98: 1 | J98: 1 | K98: 1 | L98: 1
A101: Underlying Assets - Mortgage Trust Originated Assets | B101: 2011-12-30 | C101: 2012-03-30 | D101: 2012-06-29 | E101: 2012-09-28 | F101: 2012-12-31 | G101: 2013-03-28 | H101: 2013-06-28 | I101: 2013-09-30 | J101: 2013-12-31 | K101: 2014-03-31 | L101: 2014-06-30
A102: Weighted Average LTV | B102: 0.71 | C102: 0.7166 | D102: 0.7196 | E102: 0.7188 | F102: 0.7176 | G102: 0.7167 | H102: 0.7205 | I102: 0.7213 | J102: 0.7269 | K102: 0.7226 | L102: 0.721
A103: Weighted Average Nationwide Indexed LTV | B103: 0.7046 | C103: 0.7251 | D103: 0.7282 | E103: 0.7143 | F103: 0.7125 | G103: 0.7172 | H103: 0.7179 | I103: 0.6814 | J103: 0.6884 | K103: 0.6718 | L103: 0.6577
A104: Weighted Average Halifax Indexed LTV | B104: 0.7078 | C104: 0.7056 | D104: 0.7149 | E104: 0.7116 | F104: 0.7066 | G104: 0.7121 | H104: 0.6994 | I104: 0.6807 | J104: 0.6742 | K104: 0.6656 | L104: 0.6487
A105: % of Standard Variable Rate Mortgages | B105: 0 | C105: 0 | D105: 0 | E105: 0 | F105: 0 | G105: 0 | H105: 0.2211 | I105: 0.6003 | J105: 0.8042 | K105: 0.9721 | L105: 0.9921
A106: % of Fixed Rate Mortgages (reverting to SVR) | B106: 0.4297 | C106: 0.3606 | D106: 0.3646 | E106: 0.3677 | F106: 0.3716 | G106: 0.3717 | H106: 0.232 | I106: 0.0674 | J106: 0.0058 | K106: 0.007 | L106: 0.0079
A107: % of Base Rate Mortgages | B107: 0 | C107: 0 | D107: 0 | E107: 0 | F107: 0 | G107: 0 | H107: 0 | I107: 0 | J107: 0 | K107: 0 | L107: 0
A108: % of Libor Linked Mortgages (reverting to SVR) | B108: 0.5703 | C108: 0.6394 | D108: 0.6354 | E108: 0.6323 | F108: 0.6284 | G108: 0.6283 | H108: 0.5469 | I108: 0.3323 | J108: 0.19 | K108: 0.0209 | L108: 0
A109: Weighted Average Loan Size | B109: 161145.3607 | C109: 160507.627 | D109: 159421.8016 | E109: 158729.0663 | F109: 157742.6766 | G109: 157633.1452 | H109: 153561.338 | I109: 148804.9901 | J109: 141476.7194 | K109: 134755.9617 | L109: 131799.3
A110: Weighted Average Interest Rate | B110: 0.04459 | C110: 0.04533 | D110: 0.04537 | E110: 0.04413 | F110: 0.04224 | G110: 0.04224 | H110: 0.0452 | I110: 0.05033 | J110: 0.05296 | K110: 0.05548 | L110: 0.05596
A111: Weighted Average Maturity Date (years) | B111: 20.02 | C111: 19.63 | D111: 19.34 | E111: 19.08 | F111: 18.82 | G111: 18.57 | H111: 18.36 | I111: 18.01 | J111: 17.88 | K111: 17.63 | L111: 17.15
A112: Weighted Average Seasoning (months) | B112: 6.23 | C112: 7.97 | D112: 10.95 | E112: 13.96 | F112: 17.02 | G112: 19.97 | H112: 22.75 | I112: 25.47 | J112: 28.3 | K112: 31.23 | L112: 34.28
A113: % of Interest Only Mortgages | B113: 0.9185 | C113: 0.915 | D113: 0.9147 | E113: 0.9147 | F113: 0.9156 | G113: 0.9163 | H113: 0.9179 | I113: 0.9069 | J113: 0.9048 | K113: 0.8957 | L113: 0.8839
A114: % of Interest Only Mortgages (mandatory switching to repayment) | B114: 0.0064 | C114: 0.0112 | D114: 0.0113 | E114: 0.0114 | F114: 0.0116 | G114: 0.0116 | H114: 0.0124 | I114: 0.0143 | J114: 0.0177 | K114: 0.0215 | L114: 0.019
A115: % of Repayment Mortgages | B115: 0.0751 | C115: 0.0738 | D115: 0.0739 | E115: 0.0739 | F115: 0.0728 | G115: 0.0721 | H115: 0.0696 | I115: 0.0788 | J115: 0.0775 | K115: 0.0828 | L115: 0.097
A116: % of Mortgages in London | B116: 0.4216 | C116: 0.3702 | D116: 0.3706 | E116: 0.3654 | F116: 0.3693 | G116: 0.3694 | H116: 0.3439 | I116: 0.3189 | J116: 0.2891 | K116: 0.2282 | L116: 0.2255
A117: % of Mortgages in the South East | B117: 0.2865 | C117: 0.3107 | D117: 0.3067 | E117: 0.3093 | F117: 0.3046 | G117: 0.3046 | H117: 0.3088 | I117: 0.3091 | J117: 0.2965 | K117: 0.3141 | L117: 0.2847
A118: % of Owner Occupied Mortgages | B118: 0 | C118: 0 | D118: 0 | E118: 0 | F118: 0 | G118: 0 | H118: 0 | I118: 0 | J118: 0 | K118: 0 | L118: 0
A119: % of Investment Home Loans - Professional Landlords | B119: 0.5097 | C119: 0.5033 | D119: 0.5054 | E119: 0.506 | F119: 0.5113 | G119: 0.5113 | H119: 0.5351 | I119: 0.5475 | J119: 0.6037 | K119: 0.6119 | L119: 0.6332
A120: % of Investment Home Loans - Emerging Professional Landlords | B120: 0.4903 | C120: 0.4967 | D120: 0.4946 | E120: 0.494 | F120: 0.4887 | G120: 0.4887 | H120: 0.4649 | I120: 0.4525 | J120: 0.3963 | K120: 0.3881 | L120: 0.3668
A121: Weighted Average Interest Coverage Ratio (calculated at the origination date) | B121: 1.53 | C121: 1.53 | D121: 1.53 | E121: 1.53 | F121: 1.53 | G121: 1.53 | H121: 1.53 | I121: 1.53 | J121: 1.53 | K121: 1.55 | L121: 1.55
A122: Number of Properties in Possession | B122: 0 | C122: 0 | D122: 0 | E122: 0 | F122: 0 | G122: 0 | H122: 0 | I122: 0 | J122: 0 | K122: 0 | L122: 0
A123: Appointment of a Receiver of Rent | B123: 0 | C123: 0 | D123: 0 | E123: 0 | F123: 0 | G123: 0 | H123: 0 | I123: 0 | J123: 0 | K123: 0 | L123: 0
A124: MTL Quarterly Losses | B124: 0 | C124: 0 | D124: 0 | E124: 0 | F124: 0 | G124: 0 | H124: 0 | I124: 0 | J124: 0 | K124: 0 | L124: 0
A125: Arrears excluding Receiver of Rent and Possession Cases
A126: Performing Loans | B126: 1 | C126: 1 | D126: 1 | E126: 1 | F126: 1 | G126: 0.9984 | H126: 0.9982 | I126: 0.998 | J126: 1 | K126: 0.9962 | L126: 0.9957
A127: >1 to 2 months arrears | B127: 0 | C127: 0 | D127: 0 | E127: 0 | F127: 0 | G127: 0.0016 | H127: 0.0018 | I127: 0.002 | J127: 0 | K127: 0 | L127: 0
A128: >2 to 3 months arrears | B128: 0 | C128: 0 | D128: 0 | E128: 0 | F128: 0 | G128: 0 | H128: 0 | I128: 0 | J128: 0 | K128: 0.0038 | L128: 0
A129: >3 months arrears | B129: 0 | C129: 0 | D129: 0 | E129: 0 | F129: 0 | G129: 0 | H129: 0 | I129: 0 | J129: 0 | K129: 0 | L129: 0.0043
A130: Total | B130: =SUM(B126:B129) -> 1 | C130: 1 | D130: 1 | E130: 1 | F130: 1 | G130: 1 | H130: 1 | I130: 1 | J130: 1 | K130: 1 | L130: 1

Sheet Graphs
K2: PARAGON MORTGAGES (NO.16) PLC
